[Event "Titled Tuesday Blitz June 28 Late 2022"]
[White "Mekhane, Adam"]
[Black "Schekachikhin, Maksim"]
[WhiteFideId "36050601"]
[BlackFideId "24177830"]
[WhiteElo "2002"]
[BlackElo "2239"]
[Result "0-1"]
[Round "03"]
[TimeControl "180+1"]
[Date "2022.06.29"]
[WhiteClock "0:00:02"]
[BlackClock "0:00:48"]

1. e4 {[%clk 0:03:00]}  c5 {[%clk 0:02:59]} 2. Nf3 {[%clk 0:02:59]}  a6 {[%clk 0:02:58]} 3. c4 {[%clk 0:02:51]}  Nc6 {[%clk 0:02:58]} 4. d4 {[%clk 0:02:51]}  cxd4 {[%clk 0:02:58]} 5. Nxd4 {[%clk 0:02:51]}  e6 {[%clk 0:02:58]} 6. Nc3 {[%clk 0:02:50]}  Qc7 {[%clk 0:02:58]} 7. Be3 {[%clk 0:02:46]}  Nf6 {[%clk 0:02:57]} 8. Be2 {[%clk 0:02:46]}  b6 {[%clk 0:02:57]} 9. O-O {[%clk 0:02:46]}  Bb7 {[%clk 0:02:57]} 10. f3 {[%clk 0:02:40]}  Ne5 {[%clk 0:02:56]} 11. b3 {[%clk 0:02:39]}  d6 {[%clk 0:02:56]} 12. Qd2 {[%clk 0:02:38]}  Be7 {[%clk 0:02:56]} 13. Kh1 {[%clk 0:02:38]}  O-O {[%clk 0:02:56]} 14. g4 {[%clk 0:02:36]}  Rfe8 {[%clk 0:02:47]} 15. g5 {[%clk 0:02:35]}  Nfd7 {[%clk 0:02:47]} 16. h4 {[%clk 0:02:35]}  Nc6 {[%clk 0:02:39]} 17. Rg1 {[%clk 0:02:22]}  Nxd4 {[%clk 0:02:37]} 18. Bxd4 {[%clk 0:02:22]}  Rad8 {[%clk 0:02:36]} 19. h5 {[%clk 0:02:22]}  Ne5 {[%clk 0:02:30]} 20. Qe3 {[%clk 0:02:03]}  Nd7 {[%clk 0:02:30]} 21. Qf2 {[%clk 0:01:42]}  d5 {[%clk 0:02:19]} 22. cxd5 {[%clk 0:01:28]}  e5 {[%clk 0:02:14]} 23. Be3 {[%clk 0:01:07]}  Qxc3 {[%clk 0:02:13]} 24. g6 {[%clk 0:01:07]}  fxg6 {[%clk 0:02:12]} 25. hxg6 {[%clk 0:01:06]}  h6 {[%clk 0:02:11]} 26. d6 {[%clk 0:00:56]}  Bh4 {[%clk 0:01:27]} 27. Qxh4 {[%clk 0:00:20]}  Qxe3 {[%clk 0:01:26]} 28. Bc4+ {[%clk 0:00:21]}  Kh8 {[%clk 0:01:25]} 29. Raf1 {[%clk 0:00:16]}  Nf6 {[%clk 0:01:18]} 30. Bf7 {[%clk 0:00:15]}  Rf8 {[%clk 0:01:10]} 31. d7 {[%clk 0:00:10]}  Rxd7 {[%clk 0:01:07]} 32. Qxf6 {[%clk 0:00:09]}  Rdxf7 {[%clk 0:00:53]} 33. Qxf7 {[%clk 0:00:09]}  Rxf7 {[%clk 0:00:52]} 34. gxf7 {[%clk 0:00:10]}  Qf4 {[%clk 0:00:52]} 35. Rg2 {[%clk 0:00:03]}  Qxf7 {[%clk 0:00:49]} 36. Kh2 {[%clk 0:00:02]}  Bxe4 {[%clk 0:00:48]} 0-1


[Site "https://www.chess.com"]

[Event "Titled Tuesday Blitz June 28 Late 2022"]
[White "Mendez Fortes, Eduardo Jesus"]
[Black "Bjelobrk, Igor"]
[WhiteFideId "3502376"]
[BlackFideId "4300726"]
[WhiteElo "2321"]
[BlackElo "2335"]
[Result "0-1"]
[Round "03"]
[TimeControl "180+1"]
[Date "2022.06.29"]
[WhiteClock "0:00:08"]
[BlackClock "0:00:11"]

1. e4 {[%clk 0:03:00]}  e5 {[%clk 0:02:55]} 2. Nf3 {[%clk 0:02:58]}  Nc6 {[%clk 0:02:54]} 3. Bb5 {[%clk 0:02:58]}  a6 {[%clk 0:02:52]} 4. Ba4 {[%clk 0:02:59]}  Bc5 {[%clk 0:02:51]} 5. O-O {[%clk 0:02:58]}  Nge7 {[%clk 0:02:44]} 6. c3 {[%clk 0:02:58]}  Ng6 {[%clk 0:02:44]} 7. d4 {[%clk 0:02:57]}  Ba7 {[%clk 0:02:44]} 8. Bg5 {[%clk 0:02:51]}  f6 {[%clk 0:02:43]} 9. Be3 {[%clk 0:02:51]}  O-O {[%clk 0:02:42]} 10. d5 {[%clk 0:02:46]}  Bxe3 {[%clk 0:02:39]} 11. dxc6 {[%clk 0:02:41]}  Bxf2+ {[%clk 0:02:09]} 12. Rxf2 {[%clk 0:02:38]}  bxc6 {[%clk 0:02:08]} 13. Bb3+ {[%clk 0:02:34]}  Kh8 {[%clk 0:02:08]} 14. g3 {[%clk 0:02:29]}  Bb7 {[%clk 0:02:07]} 15. Na3 {[%clk 0:02:28]}  d5 {[%clk 0:02:07]} 16. Rd2 {[%clk 0:02:23]}  Ne7 {[%clk 0:01:59]} 17. Nc2 {[%clk 0:01:38]}  Qd6 {[%clk 0:01:57]} 18. Qe2 {[%clk 0:01:21]}  a5 {[%clk 0:01:44]} 19. a4 {[%clk 0:01:16]}  Ba6 {[%clk 0:01:25]} 20. Qe3 {[%clk 0:00:39]}  Rfb8 {[%clk 0:01:24]} 21. c4 {[%clk 0:00:33]}  d4 {[%clk 0:01:22]} 22. Qd3 {[%clk 0:00:32]}  c5 {[%clk 0:01:12]} 23. Rdd1 {[%clk 0:00:32]}  Qb6 {[%clk 0:01:10]} 24. Nd2 {[%clk 0:00:31]}  Bb7 {[%clk 0:01:06]} 25. Re1 {[%clk 0:00:30]}  Bc6 {[%clk 0:00:59]} 26. Re2 {[%clk 0:00:30]}  Nc8 {[%clk 0:00:57]} 27. Ne1 {[%clk 0:00:29]}  Nd6 {[%clk 0:00:57]} 28. Qc2 {[%clk 0:00:28]}  Rb7 {[%clk 0:00:52]} 29. Nd3 {[%clk 0:00:28]}  Rab8 {[%clk 0:00:52]} 30. Rae1 {[%clk 0:00:27]}  Qa7 {[%clk 0:00:52]} 31. Ba2 {[%clk 0:00:27]}  Re8 {[%clk 0:00:38]} 32. b3 {[%clk 0:00:27]}  Rbb8 {[%clk 0:00:35]} 33. Bb1 {[%clk 0:00:27]}  Re7 {[%clk 0:00:35]} 34. Nf2 {[%clk 0:00:24]}  Qb6 {[%clk 0:00:32]} 35. Qd3 {[%clk 0:00:24]}  Rbe8 {[%clk 0:00:32]} 36. g4 {[%clk 0:00:24]}  Nf7 {[%clk 0:00:28]} 37. h4 {[%clk 0:00:22]}  Nd8 {[%clk 0:00:28]} 38. Qg3 {[%clk 0:00:22]}  Ne6 {[%clk 0:00:28]} 39. Nd3 {[%clk 0:00:22]}  Rf7 {[%clk 0:00:25]} 40. Rg2 {[%clk 0:00:21]}  Ref8 {[%clk 0:00:25]} 41. Bc2 {[%clk 0:00:21]}  Bd7 {[%clk 0:00:24]} 42. Bd1 {[%clk 0:00:22]}  Qd6 {[%clk 0:00:24]} 43. Rf1 {[%clk 0:00:22]}  g6 {[%clk 0:00:24]} 44. Rgf2 {[%clk 0:00:22]}  Kg7 {[%clk 0:00:23]} 45. Nf3 {[%clk 0:00:20]}  Bc8 {[%clk 0:00:22]} 46. Qg2 {[%clk 0:00:20]}  Bd7 {[%clk 0:00:22]} 47. g5 {[%clk 0:00:20]}  fxg5 {[%clk 0:00:19]} 48. Nxg5 {[%clk 0:00:20]}  Rxf2 {[%clk 0:00:16]} 49. Rxf2 {[%clk 0:00:20]}  Nxg5 {[%clk 0:00:16]} 50. hxg5 {[%clk 0:00:18]}  Rxf2 {[%clk 0:00:13]} 51. Qxf2 {[%clk 0:00:19]}  Qe7 {[%clk 0:00:13]} 52. Qf6+ {[%clk 0:00:18]}  Qxf6 {[%clk 0:00:13]} 53. gxf6+ {[%clk 0:00:19]}  Kxf6 {[%clk 0:00:14]} 54. Nxc5 {[%clk 0:00:20]}  Bc6 {[%clk 0:00:14]} 55. Nd3 {[%clk 0:00:19]}  h5 {[%clk 0:00:13]} 56. Be2 {[%clk 0:00:16]}  Bxe4 {[%clk 0:00:13]} 57. b4 {[%clk 0:00:16]}  axb4 {[%clk 0:00:09]} 58. Nxb4 {[%clk 0:00:16]}  h4 {[%clk 0:00:08]} 59. a5 {[%clk 0:00:16]}  Ba8 {[%clk 0:00:08]} 60. a6 {[%clk 0:00:16]}  e4 {[%clk 0:00:08]} 61. Nd5+ {[%clk 0:00:15]}  Ke5 {[%clk 0:00:08]} 62. Nxc7 {[%clk 0:00:16]}  Bc6 {[%clk 0:00:09]} 63. a7 {[%clk 0:00:15]}  d3 {[%clk 0:00:09]} 64. Bd1 {[%clk 0:00:13]}  e3 {[%clk 0:00:09]} 65. a8=Q {[%clk 0:00:13]}  Bxa8 {[%clk 0:00:09]} 66. Nxa8 {[%clk 0:00:14]}  e2 {[%clk 0:00:10]} 67. Bxe2 {[%clk 0:00:14]}  dxe2 {[%clk 0:00:11]} 68. Kf2 {[%clk 0:00:14]}  h3 {[%clk 0:00:12]} 69. Nb6 {[%clk 0:00:08]}  h2 {[%clk 0:00:11]} 70. Nd7+ {[%clk 0:00:09]}  Kd4 {[%clk 0:00:11]} 71. Ne5 {[%clk 0:00:08]}  Kxe5 {[%clk 0:00:11]} 0-1


[Site "https://www.chess.com"]

[Event "Titled Tuesday Blitz June 28 Late 2022"]
[White "Nathan, Nitish"]
[Black "Sliwicki, Damian"]
[WhiteFideId "30927870"]
[BlackFideId "1127128"]
[WhiteElo "2242"]
[BlackElo "2081"]
[Result "1-0"]
[Round "03"]
[TimeControl "180+1"]
[Date "2022.06.29"]
[WhiteClock "0:02:06"]
[BlackClock "0:00:46"]

1. e4 {[%clk 0:03:00]}  e5 {[%clk 0:02:22]} 2. d4 {[%clk 0:02:59]}  exd4 {[%clk 0:02:21]} 3. Nf3 {[%clk 0:02:59]}  c5 {[%clk 0:02:15]} 4. c3 {[%clk 0:02:54]}  d5 {[%clk 0:02:15]} 5. exd5 {[%clk 0:02:51]}  Qxd5 {[%clk 0:02:16]} 6. cxd4 {[%clk 0:02:52]}  cxd4 {[%clk 0:02:09]} 7. Qxd4 {[%clk 0:02:47]}  Nf6 {[%clk 0:01:44]} 8. Nc3 {[%clk 0:02:44]}  Qe6+ {[%clk 0:01:32]} 9. Be3 {[%clk 0:02:42]}  Nc6 {[%clk 0:01:32]} 10. Bb5 {[%clk 0:02:41]}  Bd7 {[%clk 0:01:32]} 11. Bxc6 {[%clk 0:02:41]}  Bxc6 {[%clk 0:01:33]} 12. O-O-O {[%clk 0:02:40]}  Be7 {[%clk 0:01:30]} 13. Ng5 {[%clk 0:02:34]}  Qf5 {[%clk 0:01:25]} 14. f3 {[%clk 0:02:26]}  O-O {[%clk 0:01:23]} 15. g4 {[%clk 0:02:26]}  Qa5 {[%clk 0:01:22]} 16. h4 {[%clk 0:02:22]}  Rac8 {[%clk 0:01:17]} 17. Kb1 {[%clk 0:02:17]}  b5 {[%clk 0:01:01]} 18. h5 {[%clk 0:02:13]}  Qa4 {[%clk 0:00:59]} 19. Nxa4 {[%clk 0:02:12]}  bxa4 {[%clk 0:00:57]} 20. h6 {[%clk 0:02:10]}  g6 {[%clk 0:00:50]} 21. Ne4 {[%clk 0:02:06]}  Bxe4+ {[%clk 0:00:45]} 22. fxe4 {[%clk 0:02:06]}  Bc5 {[%clk 0:00:46]} 23. Qxf6 {[%clk 0:02:06]} 1-0


[Site "https://www.chess.com"]

[Event "Titled Tuesday Blitz June 28 Late 2022"]
[White "Nilsson, Joakim"]
[Black "Hua, Lefong"]
[WhiteFideId "1723383"]
[BlackFideId "2602253"]
[WhiteElo "2210"]
[BlackElo "2608"]
[Result "1-0"]
[Round "03"]
[TimeControl "180+1"]
[Date "2022.06.29"]
[WhiteClock "0:00:22"]
[BlackClock "0:00:12"]

1. d4 {[%clk 0:03:00]}  Nf6 {[%clk 0:03:00]} 2. Bf4 {[%clk 0:02:56]}  g6 {[%clk 0:03:00]} 3. Nc3 {[%clk 0:02:55]}  d5 {[%clk 0:02:59]} 4. e3 {[%clk 0:02:54]}  Bg7 {[%clk 0:02:59]} 5. h4 {[%clk 0:02:54]}  c6 {[%clk 0:03:00]} 6. Nf3 {[%clk 0:02:52]}  h6 {[%clk 0:02:54]} 7. Ne5 {[%clk 0:02:50]}  O-O {[%clk 0:02:52]} 8. Bd3 {[%clk 0:02:48]}  Nfd7 {[%clk 0:02:50]} 9. Nxd7 {[%clk 0:02:37]}  Nxd7 {[%clk 0:02:48]} 10. h5 {[%clk 0:02:28]}  g5 {[%clk 0:02:46]} 11. Bg3 {[%clk 0:02:29]}  e5 {[%clk 0:02:43]} 12. Bf5 {[%clk 0:02:25]}  e4 {[%clk 0:02:38]} 13. Qd2 {[%clk 0:02:12]}  Nb6 {[%clk 0:02:32]} 14. Bxc8 {[%clk 0:02:10]}  Rxc8 {[%clk 0:02:30]} 15. b3 {[%clk 0:02:08]}  c5 {[%clk 0:02:21]} 16. Ne2 {[%clk 0:02:08]}  c4 {[%clk 0:02:17]} 17. O-O {[%clk 0:01:57]}  f5 {[%clk 0:02:12]} 18. a4 {[%clk 0:01:56]}  Nd7 {[%clk 0:01:52]} 19. Rfb1 {[%clk 0:01:51]}  b6 {[%clk 0:01:50]} 20. bxc4 {[%clk 0:01:44]}  Rxc4 {[%clk 0:01:49]} 21. a5 {[%clk 0:01:42]}  Qc8 {[%clk 0:01:33]} 22. c3 {[%clk 0:01:40]}  Qc6 {[%clk 0:01:19]} 23. axb6 {[%clk 0:01:33]}  axb6 {[%clk 0:01:20]} 24. Ra7 {[%clk 0:01:32]}  Ra8 {[%clk 0:01:19]} 25. Rba1 {[%clk 0:01:30]}  Rxa7 {[%clk 0:01:17]} 26. Rxa7 {[%clk 0:01:31]}  Ra4 {[%clk 0:01:16]} 27. Rxa4 {[%clk 0:01:29]}  Qxa4 {[%clk 0:01:17]} 28. Qb2 {[%clk 0:01:29]}  Qc6 {[%clk 0:01:12]} 29. Qa3 {[%clk 0:01:25]}  Nf6 {[%clk 0:01:07]} 30. Be5 {[%clk 0:01:21]}  Nxh5 {[%clk 0:01:04]} 31. Bxg7 {[%clk 0:01:22]}  Nxg7 {[%clk 0:01:02]} 32. Ng3 {[%clk 0:01:00]}  Qe6 {[%clk 0:00:56]} 33. Qa8+ {[%clk 0:00:52]}  Kh7 {[%clk 0:00:55]} 34. Qb8 {[%clk 0:00:52]}  Kg6 {[%clk 0:00:51]} 35. Qc7 {[%clk 0:00:50]}  Ne8 {[%clk 0:00:44]} 36. Qb8 {[%clk 0:00:44]}  Nf6 {[%clk 0:00:40]} 37. Qc7 {[%clk 0:00:34]}  h5 {[%clk 0:00:40]} 38. Nf1 {[%clk 0:00:30]}  h4 {[%clk 0:00:40]} 39. Nd2 {[%clk 0:00:30]}  f4 {[%clk 0:00:26]} 40. c4 {[%clk 0:00:30]}  fxe3 {[%clk 0:00:20]} 41. fxe3 {[%clk 0:00:29]}  dxc4 {[%clk 0:00:19]} 42. Nxc4 {[%clk 0:00:29]}  Nd5 {[%clk 0:00:19]} 43. Ne5+ {[%clk 0:00:29]}  Kh6 {[%clk 0:00:18]} 44. Qd8 {[%clk 0:00:25]}  Kg7 {[%clk 0:00:14]} 45. Qb8 {[%clk 0:00:18]}  Nxe3 {[%clk 0:00:14]} 46. Qc7+ {[%clk 0:00:18]}  Kh6 {[%clk 0:00:13]} 47. Qd8 {[%clk 0:00:17]}  Kg7 {[%clk 0:00:12]} 48. Qc7+ {[%clk 0:00:17]}  Kg8 {[%clk 0:00:11]} 49. Qd8+ {[%clk 0:00:18]}  Kg7 {[%clk 0:00:11]} 50. Qxg5+ {[%clk 0:00:18]}  Kf8 {[%clk 0:00:11]} 51. Qxe3 {[%clk 0:00:19]}  Qf5 {[%clk 0:00:10]} 52. Qf2 {[%clk 0:00:18]}  Qxf2+ {[%clk 0:00:10]} 53. Kxf2 {[%clk 0:00:19]}  Ke7 {[%clk 0:00:10]} 54. Ke3 {[%clk 0:00:19]}  Ke6 {[%clk 0:00:10]} 55. Kxe4 {[%clk 0:00:20]}  b5 {[%clk 0:00:11]} 56. d5+ {[%clk 0:00:21]}  Kd6 {[%clk 0:00:11]} 57. Nd3 {[%clk 0:00:22]}  h3 {[%clk 0:00:11]} 58. gxh3 {[%clk 0:00:22]}  b4 {[%clk 0:00:12]} 59. Nxb4 {[%clk 0:00:22]} 1-0


[Site "https://www.chess.com"]

[Event "Titled Tuesday Blitz June 28 Late 2022"]
[White "Oye-Stromberg, Alexander"]
[Black "Gokerkan, Cem Kaan"]
[WhiteFideId "1525999"]
[BlackFideId "6336760"]
[WhiteElo "2492"]
[BlackElo "2710"]
[Result "0-1"]
[Round "03"]
[TimeControl "180+1"]
[Date "2022.06.29"]
[WhiteClock "0:00:12"]
[BlackClock "0:00:18"]

1. d4 {[%clk 0:03:00]}  g6 {[%clk 0:02:57]} 2. c4 {[%clk 0:02:59]}  Bg7 {[%clk 0:02:58]} 3. e4 {[%clk 0:02:51]}  Nc6 {[%clk 0:02:57]} 4. Nf3 {[%clk 0:02:39]}  d6 {[%clk 0:02:57]} 5. d5 {[%clk 0:02:34]}  Nb8 {[%clk 0:02:57]} 6. Nc3 {[%clk 0:02:25]}  Nf6 {[%clk 0:02:57]} 7. Be2 {[%clk 0:02:17]}  O-O {[%clk 0:02:58]} 8. Be3 {[%clk 0:02:17]}  c6 {[%clk 0:02:58]} 9. O-O {[%clk 0:02:17]}  Nbd7 {[%clk 0:02:57]} 10. Nd4 {[%clk 0:02:16]}  Qc7 {[%clk 0:02:57]} 11. f4 {[%clk 0:02:17]}  Nc5 {[%clk 0:02:49]} 12. Bf3 {[%clk 0:02:16]}  a5 {[%clk 0:02:49]} 13. Rc1 {[%clk 0:02:15]}  e5 {[%clk 0:02:34]} 14. fxe5 {[%clk 0:02:12]}  dxe5 {[%clk 0:02:35]} 15. Nde2 {[%clk 0:02:08]}  Na6 {[%clk 0:02:21]} 16. c5 {[%clk 0:02:05]}  Ng4 {[%clk 0:01:57]} 17. Bxg4 {[%clk 0:01:57]}  Bxg4 {[%clk 0:01:58]} 18. d6 {[%clk 0:01:57]}  Qd8 {[%clk 0:01:57]} 19. Na4 {[%clk 0:01:55]}  Be6 {[%clk 0:01:49]} 20. Nb6 {[%clk 0:01:52]}  Ra7 {[%clk 0:01:44]} 21. Nc3 {[%clk 0:01:51]}  Nb8 {[%clk 0:01:43]} 22. a3 {[%clk 0:01:48]}  f5 {[%clk 0:01:41]} 23. Qd2 {[%clk 0:01:44]}  f4 {[%clk 0:01:41]} 24. Bf2 {[%clk 0:01:43]}  g5 {[%clk 0:01:39]} 25. Rfd1 {[%clk 0:01:06]}  Rf6 {[%clk 0:01:38]} 26. d7 {[%clk 0:01:06]}  Bf8 {[%clk 0:01:38]} 27. Ncd5 {[%clk 0:01:03]}  cxd5 {[%clk 0:01:34]} 28. exd5 {[%clk 0:01:04]}  Bg4 {[%clk 0:01:27]} 29. Re1 {[%clk 0:01:01]}  Nxd7 {[%clk 0:01:08]} 30. Nxd7 {[%clk 0:00:58]}  Qxd7 {[%clk 0:01:09]} 31. c6 {[%clk 0:00:58]}  bxc6 {[%clk 0:01:09]} 32. Bxa7 {[%clk 0:00:59]}  Qxa7+ {[%clk 0:01:09]} 33. Qf2 {[%clk 0:00:54]}  Qxf2+ {[%clk 0:01:04]} 34. Kxf2 {[%clk 0:00:55]}  cxd5 {[%clk 0:01:04]} 35. Rxe5 {[%clk 0:00:54]}  Rf5 {[%clk 0:01:00]} 36. Rxf5 {[%clk 0:00:44]}  Bxf5 {[%clk 0:01:01]} 37. Rc7 {[%clk 0:00:40]}  a4 {[%clk 0:00:52]} 38. g3 {[%clk 0:00:29]}  fxg3+ {[%clk 0:00:46]} 39. hxg3 {[%clk 0:00:29]}  d4 {[%clk 0:00:47]} 40. Ke2 {[%clk 0:00:24]}  d3+ {[%clk 0:00:38]} 41. Kd2 {[%clk 0:00:23]}  Bg6 {[%clk 0:00:31]} 42. Rc4 {[%clk 0:00:20]}  Bd6 {[%clk 0:00:22]} 43. g4 {[%clk 0:00:19]}  Bf4+ {[%clk 0:00:21]} 44. Kd1 {[%clk 0:00:18]}  Be8 {[%clk 0:00:19]} 45. Rc8 {[%clk 0:00:16]}  Kf7 {[%clk 0:00:19]} 46. Rd8 {[%clk 0:00:16]}  d2 {[%clk 0:00:19]} 47. Rd4 {[%clk 0:00:14]}  Ke7 {[%clk 0:00:17]} 48. Re4+ {[%clk 0:00:13]}  Kd8 {[%clk 0:00:17]} 49. Rd4+ {[%clk 0:00:13]}  Bd7 {[%clk 0:00:18]} 50. Rd3 {[%clk 0:00:12]}  Kc7 {[%clk 0:00:17]} 51. Rc3+ {[%clk 0:00:12]}  Kb6 {[%clk 0:00:18]} 0-1


[Site "https://www.chess.com"]

[Event "Titled Tuesday Blitz June 28 Late 2022"]
[White "Ozates, Tuna"]
[Black "Jaracz, Pawel"]
[WhiteFideId "6354521"]
[BlackFideId "1102222"]
[WhiteElo "2474"]
[BlackElo "2653"]
[Result "0-1"]
[Round "03"]
[TimeControl "180+1"]
[Date "2022.06.29"]
[WhiteClock "0:00:03"]
[BlackClock "0:00:36"]

1. e4 {[%clk 0:03:00]}  c5 {[%clk 0:02:59]} 2. Nf3 {[%clk 0:02:59]}  e6 {[%clk 0:03:00]} 3. d4 {[%clk 0:02:59]}  cxd4 {[%clk 0:03:00]} 4. Nxd4 {[%clk 0:03:00]}  a6 {[%clk 0:03:00]} 5. c4 {[%clk 0:03:00]}  Nf6 {[%clk 0:03:00]} 6. Nc3 {[%clk 0:03:00]}  Bb4 {[%clk 0:03:00]} 7. Bd3 {[%clk 0:02:57]}  Nc6 {[%clk 0:02:57]} 8. Be3 {[%clk 0:02:49]}  Ne5 {[%clk 0:02:47]} 9. O-O {[%clk 0:02:45]}  O-O {[%clk 0:02:45]} 10. h3 {[%clk 0:02:42]}  d6 {[%clk 0:02:42]} 11. f4 {[%clk 0:02:39]}  Nxd3 {[%clk 0:02:37]} 12. Qxd3 {[%clk 0:02:40]}  Bxc3 {[%clk 0:02:36]} 13. bxc3 {[%clk 0:02:39]}  Nd7 {[%clk 0:02:30]} 14. Nb3 {[%clk 0:02:36]}  Qc7 {[%clk 0:02:26]} 15. Rfd1 {[%clk 0:02:33]}  Nf6 {[%clk 0:02:23]} 16. c5 {[%clk 0:02:22]}  d5 {[%clk 0:02:20]} 17. e5 {[%clk 0:02:18]}  Nd7 {[%clk 0:02:13]} 18. c4 {[%clk 0:02:15]}  dxc4 {[%clk 0:02:13]} 19. Qxc4 {[%clk 0:02:16]}  Nb6 {[%clk 0:02:12]} 20. Qe4 {[%clk 0:02:06]}  Nd5 {[%clk 0:02:08]} 21. Rac1 {[%clk 0:01:55]}  Bd7 {[%clk 0:02:02]} 22. Nd4 {[%clk 0:01:54]}  Bc6 {[%clk 0:02:00]} 23. f5 {[%clk 0:01:27]}  Nc3 {[%clk 0:01:30]} 24. Qg4 {[%clk 0:01:05]}  Nxd1 {[%clk 0:01:30]} 25. f6 {[%clk 0:01:05]}  g6 {[%clk 0:01:29]} 26. Qg5 {[%clk 0:00:59]}  Kh8 {[%clk 0:01:27]} 27. Rxd1 {[%clk 0:00:56]}  Rad8 {[%clk 0:01:24]} 28. Rf1 {[%clk 0:00:41]}  Rd5 {[%clk 0:01:14]} 29. Qh6 {[%clk 0:00:29]}  Rg8 {[%clk 0:01:14]} 30. Nf3 {[%clk 0:00:23]}  Rxe5 {[%clk 0:01:11]} 31. Ng5 {[%clk 0:00:05]}  Rxg5 {[%clk 0:01:08]} 32. Qxg5 {[%clk 0:00:06]}  Qd7 {[%clk 0:01:04]} 33. Rf4 {[%clk 0:00:04]}  Qd5 {[%clk 0:00:57]} 34. Qxd5 {[%clk 0:00:05]}  Bxd5 {[%clk 0:00:57]} 35. Bd4 {[%clk 0:00:04]}  g5 {[%clk 0:00:52]} 36. Rf2 {[%clk 0:00:03]}  h6 {[%clk 0:00:50]} 37. Rb2 {[%clk 0:00:03]}  Kh7 {[%clk 0:00:49]} 38. Rb6 {[%clk 0:00:02]}  Bc6 {[%clk 0:00:48]} 39. Be5 {[%clk 0:00:02]}  Kg6 {[%clk 0:00:48]} 40. Rb2 {[%clk 0:00:02]}  Rd8 {[%clk 0:00:48]} 41. Rf2 {[%clk 0:00:01]}  Rd5 {[%clk 0:00:47]} 42. Bd6 {[%clk 0:00:01]}  h5 {[%clk 0:00:45]} 43. Be7 {[%clk 0:00:01]}  h4 {[%clk 0:00:43]} 44. Kf1 {[%clk 0:00:01]}  Rd3 {[%clk 0:00:41]} 45. Re2 {[%clk 0:00:01]}  Rg3 {[%clk 0:00:38]} 46. Kf2 {[%clk 0:00:01]}  Rxg2+ {[%clk 0:00:38]} 47. Ke1 {[%clk 0:00:02]}  Rxe2+ {[%clk 0:00:38]} 48. Kxe2 {[%clk 0:00:03]}  Bg2 {[%clk 0:00:36]} 49. Ke3 {[%clk 0:00:03]}  Bxh3 {[%clk 0:00:36]} 0-1


[Site "https://www.chess.com"]

[Event "Titled Tuesday Blitz June 28 Late 2022"]
[White "Pakleza, Zbigniew"]
[Black "Petrovic, Aleksa"]
[WhiteFideId "1119290"]
[BlackFideId "967629"]
[WhiteElo "2816"]
[BlackElo "2501"]
[Result "1-0"]
[Round "03"]
[TimeControl "180+1"]
[Date "2022.06.29"]
[WhiteClock "0:00:09"]
[BlackClock "0:00:06"]

1. d4 {[%clk 0:03:00]}  Nf6 {[%clk 0:02:59]} 2. Nf3 {[%clk 0:02:55]}  e6 {[%clk 0:02:59]} 3. Bf4 {[%clk 0:02:52]}  c5 {[%clk 0:02:57]} 4. c3 {[%clk 0:02:52]}  Qb6 {[%clk 0:02:52]} 5. Qb3 {[%clk 0:02:52]}  Nc6 {[%clk 0:02:46]} 6. e3 {[%clk 0:02:51]}  Qxb3 {[%clk 0:02:30]} 7. axb3 {[%clk 0:02:50]}  Nh5 {[%clk 0:02:31]} 8. Bg3 {[%clk 0:02:24]}  Nxg3 {[%clk 0:02:10]} 9. hxg3 {[%clk 0:02:25]}  a6 {[%clk 0:02:09]} 10. Nbd2 {[%clk 0:02:24]}  d5 {[%clk 0:02:07]} 11. dxc5 {[%clk 0:02:13]}  Bxc5 {[%clk 0:02:06]} 12. b4 {[%clk 0:02:13]}  Ba7 {[%clk 0:01:51]} 13. b5 {[%clk 0:02:06]}  axb5 {[%clk 0:01:51]} 14. Bxb5 {[%clk 0:02:07]}  Bd7 {[%clk 0:01:51]} 15. Nb3 {[%clk 0:01:51]}  Ke7 {[%clk 0:01:46]} 16. Kd2 {[%clk 0:01:42]}  Ne5 {[%clk 0:01:32]} 17. Nxe5 {[%clk 0:01:32]}  Bxb5 {[%clk 0:01:31]} 18. Nd4 {[%clk 0:01:19]}  Be8 {[%clk 0:01:32]} 19. Ra3 {[%clk 0:01:10]}  f6 {[%clk 0:01:26]} 20. Nd3 {[%clk 0:00:59]}  e5 {[%clk 0:00:32]} 21. Nf5+ {[%clk 0:00:51]}  Kd7 {[%clk 0:00:25]} 22. Rha1 {[%clk 0:00:34]}  Bg6 {[%clk 0:00:24]} 23. Nh4 {[%clk 0:00:27]}  Be4 {[%clk 0:00:17]} 24. f3 {[%clk 0:00:18]}  g5 {[%clk 0:00:05]} 25. fxe4 {[%clk 0:00:17]}  dxe4 {[%clk 0:00:06]} 26. Nf5 {[%clk 0:00:12]}  Ke6 {[%clk 0:00:06]} 27. g4 {[%clk 0:00:10]}  Bxe3+ {[%clk 0:00:02]} 28. Kxe3 {[%clk 0:00:09]}  Rxa3 {[%clk 0:00:03]} 29. Nc5+ {[%clk 0:00:07]}  Kd5 {[%clk 0:00:03]} 30. Rxa3 {[%clk 0:00:07]}  Kxc5 {[%clk 0:00:03]} 31. Kxe4 {[%clk 0:00:07]}  h5 {[%clk 0:00:03]} 32. gxh5 {[%clk 0:00:07]}  Rxh5 {[%clk 0:00:04]} 33. Rb3 {[%clk 0:00:07]}  Rh2 {[%clk 0:00:04]} 34. Ne3 {[%clk 0:00:07]}  Rh4+ {[%clk 0:00:03]} 35. g4 {[%clk 0:00:06]}  b5 {[%clk 0:00:03]} 36. Ra3 {[%clk 0:00:06]}  Rh2 {[%clk 0:00:03]} 37. b4+ {[%clk 0:00:06]}  Kb6 {[%clk 0:00:03]} 38. Ra8 {[%clk 0:00:06]}  Rf2 {[%clk 0:00:03]} 39. Rb8+ {[%clk 0:00:05]}  Kc6 {[%clk 0:00:03]} 40. Rf8 {[%clk 0:00:06]}  Rf4+ {[%clk 0:00:03]} 41. Kd3 {[%clk 0:00:07]}  e4+ {[%clk 0:00:03]} 42. Kd4 {[%clk 0:00:07]}  Kd6 {[%clk 0:00:03]} 43. Nf5+ {[%clk 0:00:06]}  Ke6 {[%clk 0:00:03]} 44. Ne3 {[%clk 0:00:05]}  Rf3 {[%clk 0:00:03]} 45. Re8+ {[%clk 0:00:06]}  Kf7 {[%clk 0:00:03]} 46. Rxe4 {[%clk 0:00:06]}  Rf2 {[%clk 0:00:04]} 47. c4 {[%clk 0:00:06]}  bxc4 {[%clk 0:00:03]} 48. Nxc4 {[%clk 0:00:06]}  Rc2 {[%clk 0:00:03]} 49. b5 {[%clk 0:00:06]}  Rc1 {[%clk 0:00:04]} 50. b6 {[%clk 0:00:07]}  Rb1 {[%clk 0:00:04]} 51. Kc5 {[%clk 0:00:07]}  Kg6 {[%clk 0:00:05]} 52. Re2 {[%clk 0:00:07]}  f5 {[%clk 0:00:04]} 53. gxf5+ {[%clk 0:00:08]}  Kxf5 {[%clk 0:00:05]} 54. Rb2 {[%clk 0:00:08]}  Re1 {[%clk 0:00:05]} 55. b7 {[%clk 0:00:08]}  Re8 {[%clk 0:00:06]} 56. Nd6+ {[%clk 0:00:09]} 1-0


[Site "https://www.chess.com"]